{"text_format":"3","workbook":"xlsx","n_sheets":7,"sheets":["Pondelok","Utorok","Streda","Štvrtok","Piatok","Sobota","Nedeľa"],"not_rendered":{"defined_names":24},"read":"whole","date_system":"1900"}

{"sheet":"Pondelok","index":0,"n_rows":10,"n_cols":13,"rows_kept":10,"merged":[[1,1,2,1],[1,2,1,10],[1,11,1,12],[2,2,2,10],[2,11,2,12]]}
[null,"PRACOVNÝ PLÁN"]
[null,"PONDELOK","Na týždeň: ",{"$nulls":8},"DÁTUM"]
[null,null,"Názov oddelenia: ",{"$nulls":8},"ODDELENIE"]
[null,"Meno zamestnanca","7:00","8:00","9:00","10:00","11:00","12:00","13:00","14:00","15:00","PN?","SPOLU"]
[null,"Zuzana N","manažér","manažér","manažér","manažér","manažér","manažér","manažér","manažér","manažér",null,{"$f":"IFERROR(COUNTIF(Pondelok[[#This Row],[7:00]:[15:00]],\"*\"),\"\")","v":9}]
[null,"Tomáš L",null,"pokladňa","pokladňa","pokladňa","pokladňa",{"$nulls":5},{"$f":"IFERROR(COUNTIF(Pondelok[[#This Row],[7:00]:[15:00]],\"*\"),\"\")","v":4}]
[null,"Jakub V",null,"recepcia","recepcia","recepcia","recepcia ","recepcia","recepcia","recepcia",null,null,{"$f":"IFERROR(COUNTIF(Pondelok[[#This Row],[7:00]:[15:00]],\"*\"),\"\")","v":7}]
[null,"Ján K",null,"recepcia","recepcia","recepcia","recepcia ","recepcia","recepcia","recepcia",null,null,{"$f":"IFERROR(COUNTIF(Pondelok[[#This Row],[7:00]:[15:00]],\"*\"),\"\")","v":7}]
[null,"Jozef K",{"$nulls":10},{"$f":"IFERROR(COUNTIF(Pondelok[[#This Row],[7:00]:[15:00]],\"*\"),\"\")","v":0}]
[null,"Viktória M",{"$nulls":5},"pokladňa","pokladňa","pokladňa","pokladňa",null,{"$f":"IFERROR(COUNTIF(Pondelok[[#This Row],[7:00]:[15:00]],\"*\"),\"\")","v":4}]

{"sheet":"Utorok","index":1,"n_rows":10,"n_cols":13,"rows_kept":10,"merged":[[1,1,2,1],[1,2,1,10],[1,11,1,12],[2,2,2,10],[2,11,2,12]]}
[null,{"$f":"Nadpis_PRACOVNÉHO_PLÁNU","v":"PRACOVNÝ PLÁN"}]
[null,"UTOROK","Na týždeň: ",{"$nulls":8},{"$f":"DÁTUM","v":"DÁTUM"}]
[null,null,"Názov oddelenia: ",{"$nulls":8},{"$f":"ODDELENIE","v":"ODDELENIE"}]
[null,"Meno zamestnanca","7:00","8:00","9:00","10:00","11:00","12:00","13:00","14:00","15:00","PN?","SPOLU"]
[null,"Zuzana N","manažér","manažér","manažér","manažér","manažér","manažér","manažér","manažér","manažér",null,{"$f":"IFERROR(COUNTIF(Utorok[[#This Row],[7:00]:[15:00]],\"*\"),\"\")","v":9}]
[null,"Tomáš L",null,"pokladňa","pokladňa","pokladňa","pokladňa",{"$nulls":5},{"$f":"IFERROR(COUNTIF(Utorok[[#This Row],[7:00]:[15:00]],\"*\"),\"\")","v":4}]
[null,"Jakub V",null,"recepcia","recepcia","recepcia","recepcia ","recepcia","recepcia","recepcia",null,null,{"$f":"IFERROR(COUNTIF(Utorok[[#This Row],[7:00]:[15:00]],\"*\"),\"\")","v":7}]
[null,"Ján K",null,"recepcia","recepcia","recepcia","recepcia ","recepcia","recepcia","recepcia",null,null,{"$f":"IFERROR(COUNTIF(Utorok[[#This Row],[7:00]:[15:00]],\"*\"),\"\")","v":7}]
[null,"Jozef K",{"$nulls":9},"PN",{"$f":"IFERROR(COUNTIF(Utorok[[#This Row],[7:00]:[15:00]],\"*\"),\"\")","v":0}]
[null,"Viktória M",{"$nulls":5},"pokladňa","pokladňa","pokladňa","pokladňa",null,{"$f":"IFERROR(COUNTIF(Utorok[[#This Row],[7:00]:[15:00]],\"*\"),\"\")","v":4}]

{"sheet":"Streda","index":2,"n_rows":10,"n_cols":13,"rows_kept":10,"merged":[[1,1,2,1],[1,2,1,10],[1,11,1,12],[2,2,2,10],[2,11,2,12]]}
[null,{"$f":"Nadpis_PRACOVNÉHO_PLÁNU","v":"PRACOVNÝ PLÁN"}]
[null,"STREDA","Na týždeň: ",{"$nulls":8},{"$f":"DÁTUM","v":"DÁTUM"}]
[null,null,"Názov oddelenia: ",{"$nulls":8},{"$f":"ODDELENIE","v":"ODDELENIE"}]
[null,"Meno zamestnanca","7:00","8:00","9:00","10:00","11:00","12:00","13:00","14:00","15:00","PN?","SPOLU"]
[null,"Zuzana N","manažér","manažér","manažér","manažér","manažér","manažér","manažér","manažér","manažér",null,{"$f":"IFERROR(COUNTIF(Streda[[#This Row],[7:00]:[15:00]],\"*\"),\"\")","v":9}]
[null,"Tomáš L",null,"pokladňa","pokladňa","pokladňa","pokladňa",{"$nulls":5},{"$f":"IFERROR(COUNTIF(Streda[[#This Row],[7:00]:[15:00]],\"*\"),\"\")","v":4}]
[null,"Jakub V",null,"recepcia","recepcia","recepcia","recepcia ","recepcia","recepcia","recepcia",null,null,{"$f":"IFERROR(COUNTIF(Streda[[#This Row],[7:00]:[15:00]],\"*\"),\"\")","v":7}]
[null,"Ján K",null,"recepcia","recepcia","recepcia","recepcia ","recepcia","recepcia","recepcia",null,null,{"$f":"IFERROR(COUNTIF(Streda[[#This Row],[7:00]:[15:00]],\"*\"),\"\")","v":7}]
[null,"Jozef K",{"$nulls":9},"PN",{"$f":"IFERROR(COUNTIF(Streda[[#This Row],[7:00]:[15:00]],\"*\"),\"\")","v":0}]
[null,"Viktória M",{"$nulls":5},"pokladňa","pokladňa","pokladňa","pokladňa",null,{"$f":"IFERROR(COUNTIF(Streda[[#This Row],[7:00]:[15:00]],\"*\"),\"\")","v":4}]

{"sheet":"Štvrtok","index":3,"n_rows":10,"n_cols":13,"rows_kept":10,"merged":[[1,1,2,1],[1,2,1,10],[1,11,1,12],[2,2,2,10],[2,11,2,12]]}
[null,{"$f":"Nadpis_PRACOVNÉHO_PLÁNU","v":"PRACOVNÝ PLÁN"}]
[null,"ŠTVRTOK","Na týždeň: ",{"$nulls":8},{"$f":"DÁTUM","v":"DÁTUM"}]
[null,null,"Názov oddelenia: ",{"$nulls":8},{"$f":"ODDELENIE","v":"ODDELENIE"}]
[null,"Meno zamestnanca","7:00","8:00","9:00","10:00","11:00","12:00","13:00","14:00","15:00","PN?","SPOLU"]
[null,"Zuzana N","manažér","manažér","manažér","manažér","manažér","manažér","manažér","manažér","manažér",null,{"$f":"IFERROR(COUNTIF(Štvrtok[[#This Row],[7:00]:[15:00]],\"*\"),\"\")","v":9}]
[null,"Tomáš L",null,"pokladňa","pokladňa","pokladňa","pokladňa",{"$nulls":5},{"$f":"IFERROR(COUNTIF(Štvrtok[[#This Row],[7:00]:[15:00]],\"*\"),\"\")","v":4}]
[null,"Jakub V",null,"recepcia","recepcia","recepcia","recepcia ","recepcia","recepcia","recepcia",null,null,{"$f":"IFERROR(COUNTIF(Štvrtok[[#This Row],[7:00]:[15:00]],\"*\"),\"\")","v":7}]
[null,"Ján K",null,"recepcia","recepcia","recepcia","recepcia ","recepcia","recepcia","recepcia",null,null,{"$f":"IFERROR(COUNTIF(Štvrtok[[#This Row],[7:00]:[15:00]],\"*\"),\"\")","v":7}]
[null,"Jozef K",{"$nulls":9},"PN",{"$f":"IFERROR(COUNTIF(Štvrtok[[#This Row],[7:00]:[15:00]],\"*\"),\"\")","v":0}]
[null,"Viktória M",{"$nulls":5},"pokladňa","pokladňa","pokladňa","pokladňa",null,{"$f":"IFERROR(COUNTIF(Štvrtok[[#This Row],[7:00]:[15:00]],\"*\"),\"\")","v":4}]

{"sheet":"Piatok","index":4,"n_rows":10,"n_cols":13,"rows_kept":10,"merged":[[1,1,2,1],[1,2,1,10],[1,11,1,12],[2,2,2,10],[2,11,2,12]]}
[null,{"$f":"Nadpis_PRACOVNÉHO_PLÁNU","v":"PRACOVNÝ PLÁN"}]
[null,"PIATOK","Na týždeň: ",{"$nulls":8},{"$f":"DÁTUM","v":"DÁTUM"}]
[null,null,"Názov oddelenia: ",{"$nulls":8},{"$f":"ODDELENIE","v":"ODDELENIE"}]
[null,"Meno zamestnanca","7:00","8:00","9:00","10:00","11:00","12:00","13:00","14:00","15:00","PN?","SPOLU"]
[null,"Zuzana N","manažér","manažér","manažér","manažér","manažér","manažér","manažér","manažér","manažér",null,{"$f":"IFERROR(COUNTIF(Piatok[[#This Row],[7:00]:[15:00]],\"*\"),\"\")","v":9}]
[null,"Tomáš L",null,"pokladňa","pokladňa","pokladňa","pokladňa",{"$nulls":5},{"$f":"IFERROR(COUNTIF(Piatok[[#This Row],[7:00]:[15:00]],\"*\"),\"\")","v":4}]
[null,"Jakub V",null,"recepcia","recepcia","recepcia","recepcia ","recepcia","recepcia","recepcia",null,null,{"$f":"IFERROR(COUNTIF(Piatok[[#This Row],[7:00]:[15:00]],\"*\"),\"\")","v":7}]
[null,"Ján K",null,"recepcia","recepcia","recepcia","recepcia ","recepcia","recepcia","recepcia",null,null,{"$f":"IFERROR(COUNTIF(Piatok[[#This Row],[7:00]:[15:00]],\"*\"),\"\")","v":7}]
[null,"Jozef K",{"$nulls":9},"PN",{"$f":"IFERROR(COUNTIF(Piatok[[#This Row],[7:00]:[15:00]],\"*\"),\"\")","v":0}]
[null,"Viktória M",{"$nulls":5},"pokladňa","pokladňa","pokladňa","pokladňa",null,{"$f":"IFERROR(COUNTIF(Piatok[[#This Row],[7:00]:[15:00]],\"*\"),\"\")","v":4}]

{"sheet":"Sobota","index":5,"n_rows":10,"n_cols":13,"rows_kept":10,"merged":[[1,1,2,1],[1,2,1,10],[1,11,1,12],[2,2,2,10],[2,11,2,12]]}
[null,{"$f":"Nadpis_PRACOVNÉHO_PLÁNU","v":"PRACOVNÝ PLÁN"}]
[null,"SOBOTA","Na týždeň: ",{"$nulls":8},{"$f":"DÁTUM","v":"DÁTUM"}]
[null,null,"Názov oddelenia: ",{"$nulls":8},{"$f":"ODDELENIE","v":"ODDELENIE"}]
[null,"Meno zamestnanca","7:00","8:00","9:00","10:00","11:00","12:00","13:00","14:00","15:00","PN?","SPOLU"]
[null,"Zuzana N","manažér","manažér","manažér","manažér","manažér","manažér","manažér","manažér","manažér",null,{"$f":"IFERROR(COUNTIF(Sobota[[#This Row],[7:00]:[15:00]],\"*\"),\"\")","v":9}]
[null,"Tomáš L",null,"pokladňa","pokladňa","pokladňa","pokladňa",{"$nulls":5},{"$f":"IFERROR(COUNTIF(Sobota[[#This Row],[7:00]:[15:00]],\"*\"),\"\")","v":4}]
[null,"Jakub V",null,"recepcia","recepcia","recepcia","recepcia ","recepcia","recepcia","recepcia",null,null,{"$f":"IFERROR(COUNTIF(Sobota[[#This Row],[7:00]:[15:00]],\"*\"),\"\")","v":7}]
[null,"Ján K",null,"recepcia","recepcia","recepcia","recepcia ","recepcia","recepcia","recepcia",null,null,{"$f":"IFERROR(COUNTIF(Sobota[[#This Row],[7:00]:[15:00]],\"*\"),\"\")","v":7}]
[null,"Jozef K",{"$nulls":9},"PN",{"$f":"IFERROR(COUNTIF(Sobota[[#This Row],[7:00]:[15:00]],\"*\"),\"\")","v":0}]
[null,"Viktória M",{"$nulls":5},"pokladňa","pokladňa","pokladňa","pokladňa",null,{"$f":"IFERROR(COUNTIF(Sobota[[#This Row],[7:00]:[15:00]],\"*\"),\"\")","v":4}]

{"sheet":"Nedeľa","index":6,"n_rows":10,"n_cols":13,"rows_kept":10,"merged":[[1,1,2,1],[1,2,1,10],[1,11,1,12],[2,2,2,10],[2,11,2,12]]}
[null,{"$f":"Nadpis_PRACOVNÉHO_PLÁNU","v":"PRACOVNÝ PLÁN"}]
[null,"NEDEĽA","Na týždeň: ",{"$nulls":8},{"$f":"DÁTUM","v":"DÁTUM"}]
[null,null,"Názov oddelenia: ",{"$nulls":8},{"$f":"ODDELENIE","v":"ODDELENIE"}]
[null,"Meno zamestnanca","7:00","8:00","9:00","10:00","11:00","12:00","13:00","14:00","15:00","PN?","SPOLU"]
[null,"Zuzana N","manažér","manažér","manažér","manažér","manažér","manažér","manažér","manažér","manažér",null,{"$f":"IFERROR(COUNTIF(Nedeľa[[#This Row],[7:00]:[15:00]],\"*\"),\"\")","v":9}]
[null,"Tomáš L",null,"pokladňa","pokladňa","pokladňa","pokladňa",{"$nulls":5},{"$f":"IFERROR(COUNTIF(Nedeľa[[#This Row],[7:00]:[15:00]],\"*\"),\"\")","v":4}]
[null,"Jakub V",null,"recepcia","recepcia","recepcia","recepcia ","recepcia","recepcia","recepcia",null,null,{"$f":"IFERROR(COUNTIF(Nedeľa[[#This Row],[7:00]:[15:00]],\"*\"),\"\")","v":7}]
[null,"Ján K",null,"recepcia","recepcia","recepcia","recepcia ","recepcia","recepcia","recepcia",null,null,{"$f":"IFERROR(COUNTIF(Nedeľa[[#This Row],[7:00]:[15:00]],\"*\"),\"\")","v":7}]
[null,"Jozef K",{"$nulls":9},"PN",{"$f":"IFERROR(COUNTIF(Nedeľa[[#This Row],[7:00]:[15:00]],\"*\"),\"\")","v":0}]
[null,"Viktória M",{"$nulls":5},"pokladňa","pokladňa","pokladňa","pokladňa",null,{"$f":"IFERROR(COUNTIF(Nedeľa[[#This Row],[7:00]:[15:00]],\"*\"),\"\")","v":4}]